[Event "Late-Titled-Tuesday-Blitz-February-13-2024"]
[Site "Chess.com"]
[Date "2024.02.13"]
[Round "9"]
[White "rdarruda"]
[Black "Teidi96"]
[Result "1-0"]
[WhiteElo "2510"]
[BlackElo "2281"]
[TimeControl "180+1"]
[EndTime "15:43:41 PST"]
[Termination "rdarruda won by resignation"]

1. d4 {[%clk 0:01:58.5]} 1... d5 {[%clk 0:02:57]} 2. Nf3 {[%clk 0:01:59.4]} 2...
Nf6 {[%clk 0:02:57]} 3. c4 {[%clk 0:01:59.7]} 3... dxc4 {[%clk 0:02:57.9]} 4. e3
{[%clk 0:02:00]} 4... e6 {[%clk 0:02:58.5]} 5. Bxc4 {[%clk 0:02:00]} 5... a6
{[%clk 0:02:59.2]} 6. O-O {[%clk 0:01:58.9]} 6... b5 {[%clk 0:02:58.9]} 7. Bb3
{[%clk 0:01:59]} 7... Bb7 {[%clk 0:02:59.5]} 8. a4 {[%clk 0:01:58.5]} 8... b4
{[%clk 0:02:59.2]} 9. Nbd2 {[%clk 0:01:57.7]} 9... c5 {[%clk 0:02:56.3]} 10. Qe2
{[%clk 0:01:57.4]} 10... Nbd7 {[%clk 0:02:54.6]} 11. Rd1 {[%clk 0:01:56.9]}
11... Qb8 {[%clk 0:02:53.4]} 12. e4 {[%clk 0:01:55.5]} 12... cxd4 {[%clk
0:02:52.5]} 13. e5 {[%clk 0:01:55.2]} 13... Nd5 {[%clk 0:02:49.5]} 14. Nc4
{[%clk 0:01:52.9]} 14... Be7 {[%clk 0:02:44.2]} 15. Rxd4 {[%clk 0:01:51.2]}
15... O-O {[%clk 0:02:39.4]} 16. Rg4 {[%clk 0:01:50.5]} 16... Rd8 {[%clk
0:02:27.7]} 17. Bh6 {[%clk 0:01:48.7]} 17... Bf8 {[%clk 0:02:26.9]} 18. Nd6
{[%clk 0:01:38.8]} 18... g6 {[%clk 0:02:03.9]} 19. Bxf8 {[%clk 0:01:37.4]} 19...
Rxf8 {[%clk 0:02:04.8]} 20. h4 {[%clk 0:01:30.9]} 20... Rd8 {[%clk 0:02:04.5]}
21. h5 {[%clk 0:01:30.6]} 21... Nxe5 {[%clk 0:02:04.8]} 22. Nxe5 {[%clk
0:01:29.4]} 22... Qxd6 {[%clk 0:02:03]} 23. hxg6 {[%clk 0:01:29.3]} 23... hxg6
{[%clk 0:02:03]} 24. Nxg6 {[%clk 0:01:28.4]} 24... fxg6 {[%clk 0:02:02.1]} 25.
Rxg6+ {[%clk 0:01:29.3]} 25... Kf7 {[%clk 0:02:00.9]} 26. Qh5 {[%clk 0:01:28.7]}
26... Rh8 {[%clk 0:01:58]} 27. Rh6+ {[%clk 0:01:27.3]} 27... Ke7 {[%clk
0:01:52.4]} 28. Rxh8 {[%clk 0:01:25.8]} 28... Rxh8 {[%clk 0:01:53.2]} 29. Qxh8
{[%clk 0:01:26.3]} 29... Bc6 {[%clk 0:01:39.5]} 30. Re1 {[%clk 0:01:23.9]} 30...
Nf4 {[%clk 0:01:37.7]} 31. Qe5 {[%clk 0:01:14.6]} 31... Qxe5 {[%clk 0:01:07.6]}
32. Rxe5 {[%clk 0:01:15.5]} 32... Kd6 {[%clk 0:01:08.2]} 33. Rg5 {[%clk
0:01:11.2]} 33... Ne2+ {[%clk 0:01:05.5]} 34. Kf1 {[%clk 0:01:11.2]} 34... Nd4
{[%clk 0:01:06.4]} 35. Bd1 {[%clk 0:01:10.3]} 35... e5 {[%clk 0:01:00.2]} 36. b3
{[%clk 0:01:07.6]} 36... Bd5 {[%clk 0:00:57.3]} 37. Rg6+ {[%clk 0:01:06.8]}
37... Kc5 {[%clk 0:00:56.9]} 38. Rxa6 {[%clk 0:01:04.5]} 38... Nxb3 {[%clk
0:00:57.4]} 39. Bxb3 {[%clk 0:01:00.8]} 39... Bxb3 {[%clk 0:00:57.3]} 40. Ra5+
{[%clk 0:00:58.9]} 40... Kd4 {[%clk 0:00:56.5]} 41. Ke2 {[%clk 0:00:58.7]} 41...
Bc4+ {[%clk 0:00:51.2]} 42. Kd2 {[%clk 0:00:58.6]} 42... b3 {[%clk 0:00:45.6]}
43. Ra8 {[%clk 0:00:54.4]} 43... e4 {[%clk 0:00:40.3]} 44. Rd8+ {[%clk 0:00:53]}
44... Kc5 {[%clk 0:00:40.1]} 45. Kc3 {[%clk 0:00:52.9]} 45... Ba6 {[%clk
0:00:37.8]} 1-0

[Event "Late-Titled-Tuesday-Blitz-February-13-2024"]
[Site "Chess.com"]
[Date "2024.02.13"]
[Round "9"]
[White "picturesquecheck"]
[Black "lluiss"]
[Result "1-0"]
[WhiteElo "2403"]
[BlackElo "2166"]
[TimeControl "180+1"]
[EndTime "15:43:47 PST"]
[Termination "picturesquecheck won by resignation"]

1. e3 {[%clk 0:02:59.5]} 1... e5 {[%clk 0:02:56]} 2. d4 {[%clk 0:02:49]} 2... e4
{[%clk 0:02:47.5]} 3. c4 {[%clk 0:02:48.5]} 3... Nf6 {[%clk 0:02:45.8]} 4. Nc3
{[%clk 0:02:47.9]} 4... Bb4 {[%clk 0:02:43.7]} 5. Bd2 {[%clk 0:02:47.6]} 5... a5
{[%clk 0:02:36.5]} 6. a3 {[%clk 0:02:46.1]} 6... Bxc3 {[%clk 0:02:28.3]} 7. Bxc3
{[%clk 0:02:47]} 7... a4 {[%clk 0:02:28.7]} 8. Ne2 {[%clk 0:02:45.5]} 8... O-O
{[%clk 0:02:28]} 9. Ng3 {[%clk 0:02:45.3]} 9... d5 {[%clk 0:02:24.3]} 10. Bb4
{[%clk 0:02:37.9]} 10... Re8 {[%clk 0:02:19.8]} 11. Be2 {[%clk 0:02:37.8]} 11...
c6 {[%clk 0:01:54]} 12. c5 {[%clk 0:02:34.5]} 12... Na6 {[%clk 0:01:49.1]} 13.
O-O {[%clk 0:02:33.5]} 13... Nc7 {[%clk 0:01:46.5]} 14. Qd2 {[%clk 0:02:21.7]}
14... Qe7 {[%clk 0:01:42.1]} 15. Bd1 {[%clk 0:02:18.9]} 15... Bg4 {[%clk
0:01:33.3]} 16. Bc2 {[%clk 0:02:18.4]} 16... h5 {[%clk 0:01:32.2]} 17. h3 {[%clk
0:02:15.1]} 17... Bd7 {[%clk 0:01:16.8]} 18. Qd1 {[%clk 0:02:13]} 18... g6
{[%clk 0:01:13]} 19. Bxa4 {[%clk 0:02:10.3]} 19... h4 {[%clk 0:01:12.5]} 20. Nh1
{[%clk 0:02:06.8]} 20... Ne6 {[%clk 0:01:11.8]} 21. Bc2 {[%clk 0:02:05.1]} 21...
Ng5 {[%clk 0:01:11.4]} 22. Qd2 {[%clk 0:01:55.9]} 22... Bf5 {[%clk 0:01:06.5]}
23. Bd1 {[%clk 0:01:55]} 23... Qe6 {[%clk 0:01:05.8]} 24. f4 {[%clk 0:01:00.4]}
24... exf3 {[%clk 0:01:03.8]} 25. Bxf3 {[%clk 0:01:00.6]} 25... Qxe3+ {[%clk
0:00:49.3]} 26. Qxe3 {[%clk 0:01:00.7]} 26... Rxe3 {[%clk 0:00:49.5]} 27. Bd2
{[%clk 0:01:01]} 27... Nxf3+ {[%clk 0:00:49.1]} 28. Rxf3 {[%clk 0:01:01.3]}
28... Re2 {[%clk 0:00:38.4]} 29. Rf2 {[%clk 0:00:53.9]} 29... Rae8 {[%clk
0:00:37.7]} 30. Bg5 {[%clk 0:00:48.1]} 30... Rxf2 {[%clk 0:00:35.7]} 31. Nxf2
{[%clk 0:00:46.7]} 31... Ne4 {[%clk 0:00:33]} 32. Bxh4 {[%clk 0:00:44.2]} 32...
Nxf2 {[%clk 0:00:31.6]} 33. Kxf2 {[%clk 0:00:40]} 33... Kg7 {[%clk 0:00:31.8]}
34. Re1 {[%clk 0:00:38.5]} 34... Re2+ {[%clk 0:00:30.5]} 35. Rxe2 {[%clk
0:00:36.9]} 1-0

[Event "Late-Titled-Tuesday-Blitz-February-13-2024"]
[Site "Chess.com"]
[Date "2024.02.13"]
[Round "9"]
[White "Qingdom"]
[Black "PepeCuenca"]
[Result "1-0"]
[WhiteElo "2244"]
[BlackElo "2634"]
[TimeControl "180+1"]
[EndTime "15:43:48 PST"]
[Termination "Qingdom won by checkmate"]

1. d4 {[%clk 0:03:00.9]} 1... Nf6 {[%clk 0:03:00]} 2. Bg5 {[%clk 0:03:00.2]}
2... d5 {[%clk 0:02:51.2]} 3. Bxf6 {[%clk 0:03:00.1]} 3... exf6 {[%clk
0:02:49.2]} 4. e3 {[%clk 0:03:00.1]} 4... f5 {[%clk 0:02:48.8]} 5. g3 {[%clk
0:02:59.8]} 5... Bd6 {[%clk 0:02:48.7]} 6. Bg2 {[%clk 0:02:59.8]} 6... c6 {[%clk
0:02:49.3]} 7. Ne2 {[%clk 0:02:58.5]} 7... O-O {[%clk 0:02:48.3]} 8. O-O {[%clk
0:02:57.7]} 8... Nd7 {[%clk 0:02:48.2]} 9. Nd2 {[%clk 0:02:57.2]} 9... Nf6
{[%clk 0:02:47.4]} 10. b3 {[%clk 0:02:56.5]} 10... g6 {[%clk 0:02:47.1]} 11. c4
{[%clk 0:02:56.3]} 11... dxc4 {[%clk 0:02:43.8]} 12. bxc4 {[%clk 0:02:55.9]}
12... Re8 {[%clk 0:02:32.5]} 13. Qc2 {[%clk 0:02:49.6]} 13... Qc7 {[%clk
0:02:28.8]} 14. a4 {[%clk 0:02:48]} 14... a5 {[%clk 0:02:28.6]} 15. Rab1 {[%clk
0:02:46.2]} 15... Bb4 {[%clk 0:02:28.6]} 16. Nc1 {[%clk 0:02:34.7]} 16... Be6
{[%clk 0:02:21.1]} 17. Nf3 {[%clk 0:02:22.5]} 17... Ne4 {[%clk 0:02:18.9]} 18.
Nd3 {[%clk 0:02:22.5]} 18... Bf8 {[%clk 0:02:14]} 19. c5 {[%clk 0:02:20.4]}
19... h5 {[%clk 0:02:02]} 20. Nf4 {[%clk 0:02:18.7]} 20... Bh6 {[%clk
0:01:53.1]} 21. Nxe6 {[%clk 0:02:18.5]} 21... Rxe6 {[%clk 0:01:50.9]} 22. Ne5
{[%clk 0:02:04.9]} 22... Bg7 {[%clk 0:01:29.7]} 23. Bxe4 {[%clk 0:01:59]} 23...
fxe4 {[%clk 0:01:25.5]} 24. Nc4 {[%clk 0:01:55.7]} 24... h4 {[%clk 0:01:10.7]}
25. Rb6 {[%clk 0:01:53.8]} 25... Re7 {[%clk 0:00:44.9]} 26. Rfb1 {[%clk
0:01:53.2]} 26... Qc8 {[%clk 0:00:31]} 27. Qe2 {[%clk 0:01:43.7]} 27... Ra7
{[%clk 0:00:24.2]} 28. Nd6 {[%clk 0:01:33.3]} 28... Qe6 {[%clk 0:00:16.5]} 29.
Nxb7 {[%clk 0:01:22.8]} 29... Rc7 {[%clk 0:00:08.2]} 30. Nd6 {[%clk 0:01:21.3]}
30... Bf8 {[%clk 0:00:07.4]} 31. Nc4 {[%clk 0:01:10.2]} 31... Kg7 {[%clk
0:00:07.5]} 32. Ne5 {[%clk 0:01:08]} 32... Be7 {[%clk 0:00:05.9]} 33. Qc4 {[%clk
0:00:54.4]} 33... Qh3 {[%clk 0:00:05.2]} 34. Qxf7+ {[%clk 0:00:53.1]} 34... Kh6
{[%clk 0:00:05.1]} 35. Qxg6# {[%clk 0:00:53]} 1-0

[Event "Late-Titled-Tuesday-Blitz-February-13-2024"]
[Site "Chess.com"]
[Date "2024.02.13"]
[Round "9"]
[White "Kostukov_Alex"]
[Black "Cambek64"]
[Result "1-0"]
[WhiteElo "2331"]
[BlackElo "2504"]
[TimeControl "180+1"]
[EndTime "15:43:55 PST"]
[Termination "Kostukov_Alex won by resignation"]

1. g3 {[%clk 0:02:59.9]} 1... d5 {[%clk 0:02:46.8]} 2. Bg2 {[%clk 0:02:59.5]}
2... c6 {[%clk 0:02:47]} 3. d3 {[%clk 0:02:59.8]} 3... Bf5 {[%clk 0:02:47]} 4.
e4 {[%clk 0:03:00]} 4... dxe4 {[%clk 0:02:46.3]} 5. dxe4 {[%clk 0:03:00.9]} 5...
Qxd1+ {[%clk 0:02:45.1]} 6. Kxd1 {[%clk 0:03:01.8]} 6... Bg4+ {[%clk 0:02:38.1]}
7. f3 {[%clk 0:03:01.9]} 7... Bc8 {[%clk 0:02:36.7]} 8. Be3 {[%clk 0:03:02.8]}
8... e5 {[%clk 0:02:36.5]} 9. Nd2 {[%clk 0:03:03.7]} 9... Be6 {[%clk 0:02:36.2]}
10. Bh3 {[%clk 0:03:03.2]} 10... Bxh3 {[%clk 0:02:35.2]} 11. Nxh3 {[%clk
0:03:04.1]} 11... f6 {[%clk 0:02:35]} 12. Ke2 {[%clk 0:03:05]} 12... Nd7 {[%clk
0:02:35]} 13. a4 {[%clk 0:03:05.7]} 13... Bc5 {[%clk 0:02:34.3]} 14. Nc4 {[%clk
0:02:56.5]} 14... O-O-O {[%clk 0:02:29.1]} 15. Rhd1 {[%clk 0:02:52.8]} 15...
Bxe3 {[%clk 0:02:27.5]} 16. Kxe3 {[%clk 0:02:31.6]} 16... Kc7 {[%clk 0:02:22.1]}
17. Rd3 {[%clk 0:02:04.8]} 17... Nh6 {[%clk 0:02:18.4]} 18. a5 {[%clk
0:02:01.2]} 18... Nc5 {[%clk 0:02:17.8]} 19. Rxd8 {[%clk 0:02:00.4]} 19... Rxd8
{[%clk 0:02:18]} 20. b4 {[%clk 0:02:00.8]} 20... Ne6 {[%clk 0:02:15.4]} 21. c3
{[%clk 0:02:01]} 21... Nf7 {[%clk 0:02:13.7]} 22. Nf2 {[%clk 0:01:57.5]} 22...
Nd6 {[%clk 0:02:13.9]} 23. Nxd6 {[%clk 0:01:57.7]} 23... Rxd6 {[%clk 0:02:13.7]}
24. Nd3 {[%clk 0:01:55.4]} 24... g5 {[%clk 0:01:52.3]} 25. h4 {[%clk 0:01:51.9]}
25... gxh4 {[%clk 0:01:46.2]} 26. gxh4 {[%clk 0:01:52]} 26... Rd7 {[%clk
0:01:46.7]} 27. Rg1 {[%clk 0:01:47.4]} 27... Rg7 {[%clk 0:01:46.8]} 28. Rxg7+
{[%clk 0:01:41.4]} 28... Nxg7 {[%clk 0:01:47.1]} 29. f4 {[%clk 0:01:42]} 29...
exf4+ {[%clk 0:01:45.3]} 30. Kxf4 {[%clk 0:01:32.8]} 30... Kd6 {[%clk
0:01:45.6]} 31. Nc5 {[%clk 0:01:28.4]} 31... b6 {[%clk 0:01:45.5]} 32. axb6
{[%clk 0:01:14.5]} 32... axb6 {[%clk 0:01:44.1]} 33. Na4 {[%clk 0:01:10.7]}
33... b5 {[%clk 0:01:43.7]} 34. Nc5 {[%clk 0:00:55.3]} 34... Ne6+ {[%clk
0:01:43.5]} 35. Kf5 {[%clk 0:00:52.9]} 35... Nxc5 {[%clk 0:01:39.8]} 36. bxc5+
{[%clk 0:00:53.1]} 36... Ke7 {[%clk 0:01:18.6]} 37. h5 {[%clk 0:00:44.8]} 37...
Kf7 {[%clk 0:01:13.4]} 38. h6 {[%clk 0:00:38.8]} 38... Ke7 {[%clk 0:01:09.8]}
39. e5 {[%clk 0:00:39]} 39... fxe5 {[%clk 0:01:10.2]} 40. Kxe5 {[%clk
0:00:39.5]} 40... Kd7 {[%clk 0:00:54.7]} 41. Kf6 {[%clk 0:00:39.5]} 41... Kd8
{[%clk 0:00:51.4]} 42. Ke6 {[%clk 0:00:36.4]} 42... Kc7 {[%clk 0:00:51.1]} 43.
Ke7 {[%clk 0:00:36.3]} 43... Kc8 {[%clk 0:00:51]} 44. Kd6 {[%clk 0:00:35.5]}
44... Kb7 {[%clk 0:00:51.5]} 45. Kd7 {[%clk 0:00:35.9]} 45... Ka6 {[%clk
0:00:51.9]} 46. Kxc6 {[%clk 0:00:36.1]} 46... Ka5 {[%clk 0:00:52.7]} 47. Kd5
{[%clk 0:00:35.1]} 1-0

[Event "Late-Titled-Tuesday-Blitz-February-13-2024"]
[Site "Chess.com"]
[Date "2024.02.13"]
[Round "9"]
[White "AsaHoffmann"]
[Black "sotochess"]
[Result "0-1"]
[WhiteElo "2420"]
[BlackElo "2578"]
[TimeControl "180+1"]
[EndTime "15:43:55 PST"]
[Termination "sotochess won by resignation"]

1. d4 {[%clk 0:02:57.7]} 1... Nf6 {[%clk 0:02:59]} 2. Bg5 {[%clk 0:02:56.9]}
2... Ne4 {[%clk 0:02:58.6]} 3. Bf4 {[%clk 0:02:53.4]} 3... c5 {[%clk 0:02:58.7]}
4. f3 {[%clk 0:02:53.2]} 4... Nf6 {[%clk 0:02:58.2]} 5. dxc5 {[%clk 0:02:52.7]}
5... Qa5+ {[%clk 0:02:55.5]} 6. Nc3 {[%clk 0:02:52.2]} 6... Qxc5 {[%clk
0:02:54.9]} 7. e4 {[%clk 0:02:52.2]} 7... Nc6 {[%clk 0:02:54.2]} 8. Qd2 {[%clk
0:02:52]} 8... d6 {[%clk 0:02:48.9]} 9. Nb5 {[%clk 0:02:48.9]} 9... Qb6 {[%clk
0:02:45.1]} 10. Be3 {[%clk 0:02:41.7]} 10... Qd8 {[%clk 0:02:41.7]} 11. c4
{[%clk 0:02:41.4]} 11... a6 {[%clk 0:02:32.5]} 12. Nc3 {[%clk 0:02:40.9]} 12...
g6 {[%clk 0:02:26.2]} 13. Rd1 {[%clk 0:02:36.9]} 13... Bg7 {[%clk 0:02:21.6]}
14. Nge2 {[%clk 0:02:31.6]} 14... O-O {[%clk 0:02:15.9]} 15. Bh6 {[%clk
0:02:30.9]} 15... Rb8 {[%clk 0:02:09.5]} 16. Ng3 {[%clk 0:02:30.2]} 16... Be6
{[%clk 0:02:07.6]} 17. h4 {[%clk 0:02:29.6]} 17... Ne5 {[%clk 0:02:05.5]} 18. b3
{[%clk 0:02:27.4]} 18... Qa5 {[%clk 0:02:05.2]} 19. Bxg7 {[%clk 0:02:22.4]}
19... Kxg7 {[%clk 0:02:04.8]} 20. h5 {[%clk 0:02:22.3]} 20... b5 {[%clk
0:01:34.2]} 21. f4 {[%clk 0:02:20.8]} 21... Neg4 {[%clk 0:01:32.5]} 22. f5
{[%clk 0:02:20]} 22... bxc4 {[%clk 0:01:27.4]} 23. fxe6 {[%clk 0:02:15.4]} 23...
Qe5 {[%clk 0:01:21]} 24. Rh3 {[%clk 0:02:04.3]} 24... fxe6 {[%clk 0:01:12.7]}
25. Be2 {[%clk 0:02:02.9]} 25... cxb3 {[%clk 0:01:10.6]} 26. axb3 {[%clk
0:02:02.3]} 26... Rxb3 {[%clk 0:01:09.7]} 27. Qd4 {[%clk 0:01:59.9]} 27... Rxc3
{[%clk 0:01:07.7]} 28. hxg6 {[%clk 0:01:52.5]} 28... Qxd4 {[%clk 0:00:57.4]} 29.
Rxd4 {[%clk 0:01:51.7]} 29... Rc1+ {[%clk 0:00:52.8]} 30. Kd2 {[%clk 0:01:49.9]}
30... Rfc8 {[%clk 0:00:52.6]} 31. Bd3 {[%clk 0:01:41.1]} 31... hxg6 {[%clk
0:00:50.7]} 32. Ne2 {[%clk 0:01:35.1]} 32... Ra1 {[%clk 0:00:44.9]} 33. Rf3
{[%clk 0:01:30.6]} 33... Ne5 {[%clk 0:00:44]} 34. Rg3 {[%clk 0:01:29.3]} 34...
Ra2+ {[%clk 0:00:42.6]} 35. Ke1 {[%clk 0:01:27.9]} 35... Nxd3+ {[%clk
0:00:40.7]} 36. Rdxd3 {[%clk 0:01:24.8]} 36... Nxe4 {[%clk 0:00:38.6]} 37. Rg4
{[%clk 0:01:24.3]} 37... Nf6 {[%clk 0:00:38.1]} 38. Rg5 {[%clk 0:01:20.3]} 38...
e5 {[%clk 0:00:37.2]} 39. Rdg3 {[%clk 0:01:19.2]} 39... Rcc2 {[%clk 0:00:33.6]}
40. Rxg6+ {[%clk 0:01:18.2]} 40... Kf7 {[%clk 0:00:33.8]} 41. Rg7+ {[%clk
0:01:14.9]} 41... Kf8 {[%clk 0:00:33.4]} 42. Nc3 {[%clk 0:01:07.2]} 42... Rxc3
{[%clk 0:00:28.4]} 43. Rxc3 {[%clk 0:01:04.7]} 43... Kxg7 {[%clk 0:00:27.8]} 44.
Kf1 {[%clk 0:01:04.5]} 44... Nd5 {[%clk 0:00:26.5]} 45. Ra3 {[%clk 0:01:02.2]}
45... Rxa3 {[%clk 0:00:25.8]} 0-1

[Event "Late-Titled-Tuesday-Blitz-February-13-2024"]
[Site "Chess.com"]
[Date "2024.02.13"]
[Round "9"]
[White "yaguigor"]
[Black "sharkarton"]
[Result "1-0"]
[WhiteElo "2642"]
[BlackElo "2518"]
[TimeControl "180+1"]
[EndTime "15:43:59 PST"]
[Termination "yaguigor won on time"]

1. d4 {[%clk 0:03:00.9]} 1... Nf6 {[%clk 0:02:52.9]} 2. c4 {[%clk 0:03:00.9]}
2... e6 {[%clk 0:02:53]} 3. Nc3 {[%clk 0:03:00.2]} 3... d5 {[%clk 0:02:52.2]} 4.
cxd5 {[%clk 0:02:57.7]} 4... exd5 {[%clk 0:02:53.1]} 5. Bg5 {[%clk 0:02:57.6]}
5... c6 {[%clk 0:02:52.9]} 6. e3 {[%clk 0:02:55.5]} 6... Bd6 {[%clk 0:02:49.5]}
7. Bd3 {[%clk 0:02:54.5]} 7... O-O {[%clk 0:02:48.8]} 8. Nge2 {[%clk 0:02:51.6]}
8... h6 {[%clk 0:02:45.7]} 9. Bh4 {[%clk 0:02:50.9]} 9... Re8 {[%clk 0:02:44.1]}
10. Qc2 {[%clk 0:02:49.6]} 10... a5 {[%clk 0:02:39.2]} 11. h3 {[%clk 0:02:42]}
11... b5 {[%clk 0:02:29]} 12. a3 {[%clk 0:02:37.1]} 12... Nbd7 {[%clk
0:02:27.6]} 13. O-O {[%clk 0:01:56.3]} 13... Qb6 {[%clk 0:02:24.8]} 14. Ng3
{[%clk 0:01:50.1]} 14... Ba6 {[%clk 0:02:17.9]} 15. Nf5 {[%clk 0:01:48.8]} 15...
Bf8 {[%clk 0:02:17.2]} 16. Rac1 {[%clk 0:01:41.1]} 16... b4 {[%clk 0:01:46.9]}
17. Na4 {[%clk 0:01:39.4]} 17... Bxd3 {[%clk 0:01:46.6]} 18. Qxd3 {[%clk
0:01:38.7]} 18... Qa6 {[%clk 0:01:44.5]} 19. Qxa6 {[%clk 0:01:35.2]} 19... Rxa6
{[%clk 0:01:45.4]} 20. Bxf6 {[%clk 0:01:30.8]} 20... Nxf6 {[%clk 0:01:46.3]} 21.
Nc5 {[%clk 0:01:30.5]} 21... Bxc5 {[%clk 0:01:41.2]} 22. Rxc5 {[%clk 0:01:29.6]}
22... Ne4 {[%clk 0:01:41.5]} 23. Rc2 {[%clk 0:01:29.2]} 23... Kh7 {[%clk
0:01:08.9]} 24. Rfc1 {[%clk 0:01:27.6]} 24... g6 {[%clk 0:01:04.5]} 25. Nh4
{[%clk 0:01:26.9]} 25... Rc8 {[%clk 0:00:48]} 26. Nf3 {[%clk 0:01:24.6]} 26...
b3 {[%clk 0:00:40.8]} 27. Re2 {[%clk 0:01:21]} 27... c5 {[%clk 0:00:41.2]} 28.
dxc5 {[%clk 0:01:19.5]} 28... Rxc5 {[%clk 0:00:40.1]} 29. Rxc5 {[%clk
0:01:17.9]} 29... Nxc5 {[%clk 0:00:41]} 30. Nd4 {[%clk 0:01:17.9]} 30... a4
{[%clk 0:00:38.9]} 31. f3 {[%clk 0:01:14.3]} 31... Ra7 {[%clk 0:00:25.1]} 32.
Rd2 {[%clk 0:01:13.4]} 32... Rd7 {[%clk 0:00:17.5]} 33. Kf2 {[%clk 0:01:09.3]}
33... Kg7 {[%clk 0:00:17.6]} 34. Nb5 {[%clk 0:01:07]} 34... Kf6 {[%clk
0:00:13.5]} 35. Nc3 {[%clk 0:01:07.4]} 35... Ke6 {[%clk 0:00:11.8]} 36. g4
{[%clk 0:01:04.9]} 36... f5 {[%clk 0:00:11.1]} 37. Rd4 {[%clk 0:01:03.1]} 37...
fxg4 {[%clk 0:00:04.8]} 38. hxg4 {[%clk 0:01:02.4]} 38... h5 {[%clk 0:00:04]}
39. Kg3 {[%clk 0:01:00.7]} 39... hxg4 {[%clk 0:00:02.2]} 40. Kxg4 {[%clk
0:01:00.1]} 1-0

[Event "Late-Titled-Tuesday-Blitz-February-13-2024"]
[Site "Chess.com"]
[Date "2024.02.13"]
[Round "9"]
[White "jcmesafischer"]
[Black "nj123456"]
[Result "0-1"]
[WhiteElo "2389"]
[BlackElo "2463"]
[TimeControl "180+1"]
[EndTime "15:44:12 PST"]
[Termination "nj123456 won on time"]

1. e4 {[%clk 0:02:57.3]} 1... c6 {[%clk 0:02:59]} 2. Nf3 {[%clk 0:02:57]} 2...
d5 {[%clk 0:02:59.9]} 3. Nc3 {[%clk 0:02:57.2]} 3... dxe4 {[%clk 0:02:58.3]} 4.
Nxe4 {[%clk 0:02:58.1]} 4... Nf6 {[%clk 0:02:58.8]} 5. Qe2 {[%clk 0:02:57.5]}
5... Nxe4 {[%clk 0:02:56.8]} 6. Qxe4 {[%clk 0:02:58.4]} 6... Qd5 {[%clk
0:02:56.8]} 7. Qh4 {[%clk 0:02:54.6]} 7... Qe6+ {[%clk 0:02:56.9]} 8. Be2 {[%clk
0:02:53.3]} 8... Qg4 {[%clk 0:02:57.8]} 9. Qg3 {[%clk 0:02:53.5]} 9... Qxg3
{[%clk 0:02:57.2]} 10. hxg3 {[%clk 0:02:54.4]} 10... g6 {[%clk 0:02:57.3]} 11.
d4 {[%clk 0:02:51.6]} 11... Bg7 {[%clk 0:02:55.6]} 12. Bf4 {[%clk 0:02:47.9]}
12... O-O {[%clk 0:02:53.7]} 13. O-O-O {[%clk 0:02:41.8]} 13... Bg4 {[%clk
0:02:48.1]} 14. Bh6 {[%clk 0:02:34.1]} 14... Nd7 {[%clk 0:02:39.6]} 15. Rde1
{[%clk 0:02:26.3]} 15... e6 {[%clk 0:02:21.6]} 16. Bxg7 {[%clk 0:02:21.2]} 16...
Kxg7 {[%clk 0:02:21]} 17. Ng5 {[%clk 0:02:21.5]} 17... h5 {[%clk 0:01:50.2]} 18.
f3 {[%clk 0:02:07.4]} 18... Bf5 {[%clk 0:01:44.8]} 19. g4 {[%clk 0:02:07.1]}
19... f6 {[%clk 0:01:30.8]} 20. gxf5 {[%clk 0:01:56.3]} 20... fxg5 {[%clk
0:01:31.7]} 21. fxe6 {[%clk 0:01:56.1]} 21... Nf6 {[%clk 0:01:32.2]} 22. Bc4
{[%clk 0:01:51.3]} 22... Rfe8 {[%clk 0:01:30.3]} 23. Re5 {[%clk 0:01:51.1]}
23... g4 {[%clk 0:01:28.6]} 24. Rhe1 {[%clk 0:01:45.6]} 24... Rad8 {[%clk
0:01:08.5]} 25. c3 {[%clk 0:01:38.2]} 25... Re7 {[%clk 0:01:08.4]} 26. a4 {[%clk
0:01:31.2]} 26... gxf3 {[%clk 0:01:03.5]} 27. gxf3 {[%clk 0:01:30.8]} 27... Ne8
{[%clk 0:01:04.1]} 28. Rg1 {[%clk 0:01:21.4]} 28... Kf6 {[%clk 0:00:57.1]} 29.
Bd3 {[%clk 0:01:15.6]} 29... Rg7 {[%clk 0:00:52.5]} 30. f4 {[%clk 0:01:11.7]}
30... Nc7 {[%clk 0:00:41]} 31. Reg5 {[%clk 0:00:39]} 31... Rdg8 {[%clk
0:00:34.2]} 32. Re1 {[%clk 0:00:06.4]} 32... Nxe6 {[%clk 0:00:33.2]} 33. Rge5
{[%clk 0:00:04.7]} 33... Nxf4 {[%clk 0:00:31.9]} 34. Bc4 {[%clk 0:00:01.9]}
34... Rd8 {[%clk 0:00:30.7]} 0-1